bitfinex/quotes_SOLUSD_20240717
["timestamp","ask_amount","ask_price","bid_price","bid_amount"]
[1721227961738,15.5455,160.82,160.71,6.1475]
[1721227961955,15.5455,160.82,160.72,6.2218]
[1721227962168,15.5455,160.82,160.72,45.0]
[1721227962367,6.2201,160.77,160.72,45.0]
[1721227963065,6.2201,160.77,160.72,51.2219]
[1721227963244,6.2205,160.76,160.72,45.0]
[1721227963443,6.2201,160.77,160.72,45.0]
[1721227963670,6.2197,160.78,160.72,51.2219]
[1721227963846,6.2197,160.78,160.73,6.2215]
[1721227964049,6.2197,160.78,160.74,1.24403325]
[1721227965544,6.2201,160.77,160.71,27.9251]
[1721227965754,6.2201,160.77,160.72,45.0]
[1721227965945,29.81,160.82,160.72,63.69]
[1721227966150,6.2192,160.8,160.74,6.221]
[1721227966358,20.0,160.79,160.75,45.0]
[1721227966558,20.0,160.79,160.73,15.553]
[1721227966760,20.0,160.79,160.71,6.1475]
[1721227966761,6.22,160.77,160.71,12.3695]
[1721227967152,20.0,160.81,160.72,15.7246]
[1721227967366,6.2198,160.78,160.73,45.0]
[1721227967686,6.2193,160.79,160.73,51.2215]
[1721227968459,6.2196,160.78,160.73,51.2215]
[1721227969851,6.22,160.77,160.73,45.0]
[1721227970056,6.22,160.77,160.72,21.7764]
[1721227970352,20.0,160.81,160.72,21.7764]
[1721227970563,6.2197,160.78,160.73,6.2214]
[1721227971150,35.5468,160.81,160.71,6.1475]
[1721227971458,35.5468,160.81,160.71,12.3695]
[1721227971459,6.2204,160.76,160.71,12.3695]
[1721227971860,6.2211,160.75,160.71,6.1475]
[1721227972065,6.2215,160.74,160.69,31.0509]
[1721227972447,15.5485,160.79,160.7,6.2226]
[1721227972448,6.2205,160.76,160.7,6.2226]
[1721227972650,6.2208,160.75,160.7,6.2226]
[1721227972951,6.2208,160.75,160.69,37.2739]
[1721227973358,6.2213,160.74,160.69,31.0509]
[1721227973564,6.2217,160.73,160.69,15.4937]
[1721227974154,6.222,160.72,160.69,15.4937]
[1721227974355,21.1125,160.71,160.67,6.4511]
[1721227974561,14.89,160.71,160.66,21.7843]
[1721227975454,21.1124,160.71,160.66,21.7843]
[1721227975672,14.89,160.7,160.66,21.7843]
[1721227976078,14.89,160.71,160.66,21.7843]
[1721227976664,14.89,160.7,160.66,21.7843]
[1721227977672,14.89,160.71,160.66,30.4501]
[1721227978258,14.89,160.72,160.67,14.89]
[1721227978779,21.1121,160.72,160.67,21.1138]
[1721227979073,14.89,160.72,160.67,21.1138]
[1721227979270,21.1115,160.74,160.69,6.2231]
[1721227979462,20.0,160.73,160.69,21.1131]
[1721227979663,20.0,160.73,160.7,6.2227]
[1721227980275,21.1105,160.76,160.71,21.1122]
[1721227980661,6.2201,160.77,160.72,22.35618658]
[1721227980865,6.2204,160.76,160.72,14.89]
[1721227981072,6.2204,160.76,160.71,21.1123]
[1721227981379,21.1101,160.77,160.72,14.89]
[1721227981760,14.89,160.76,160.71,14.89]
[1721227981968,21.1101,160.77,160.72,16.13421827]
[1721227982479,21.1103,160.77,160.71,6.2222]
[1721227982777,21.1098,160.78,160.73,14.89]
[1721227982966,14.89,160.76,160.71,21.1123]
[1721227983165,14.89,160.76,160.71,14.89]
[1721227983369,14.89,160.76,160.7,36.492]
[1721227983370,6.2209,160.75,160.7,36.492]
[1721227983585,6.2209,160.75,160.7,42.7147]
[1721227984072,6.2209,160.75,160.7,36.492]
[1721227984373,14.89,160.74,160.69,14.89]
[1721227984557,21.1113,160.74,160.69,21.1131]
[1721227985375,14.89,160.74,160.7,6.2227]
[1721227985574,14.89,160.74,160.69,21.113]
[1721227985881,14.89,160.74,160.7,6.2227]
[1721227986099,14.89,160.75,160.71,6.2223]
[1721227986386,83.56158066,160.8,160.72,14.89]
[1721227986387,21.1103,160.77,160.72,14.89]
[1721227986678,21.1103,160.77,160.71,36.6678]
[1721227986679,34.89,160.76,160.71,36.6678]
[1721227987272,21.1093,160.79,160.74,14.89]
[1721227987563,21.1097,160.78,160.74,1.24406787]
[1721227988779,6.22,160.77,160.73,14.89]
[1721227989182,6.2198,160.78,160.73,14.89]
[1721227989359,21.1098,160.78,160.73,14.89]
[1721227989782,6.2205,160.76,160.72,75.3024]
[1721227990177,21.1101,160.77,160.72,75.3024]
[1721227990484,21.1101,160.77,160.72,81.5243]
[1721227990678,21.1101,160.77,160.72,75.3024]
[1721227991061,21.1101,160.77,160.72,81.5243]
[1721227991383,21.1101,160.77,160.72,75.3024]
[1721227991780,21.1101,160.77,160.72,81.5242]
[1721227992079,21.1097,160.78,160.73,14.89]
[1721227993363,21.1101,160.77,160.72,75.3024]
[1721227993565,14.89,160.77,160.72,81.5241]
[1721227993784,21.11,160.77,160.72,81.5241]
[1721227994682,21.11,160.77,160.72,75.3024]
[1721227994876,15.5475,160.8,160.72,15.4124]
[1721227995082,6.2215,160.74,160.72,15.4124]
[1721227995285,21.1116,160.73,160.68,30.4482]
[1721227995488,21.112,160.72,160.67,22.5489]
[1721227995682,21.112,160.72,160.67,16.3251]
[1721227995683,14.89,160.71,160.67,16.3251]
[1721227995872,21.1125,160.71,160.67,16.3251]
[1721227996379,6.2228,160.7,160.67,16.3251]
[1721227996578,21.1125,160.71,160.67,16.3251]
[1721227996788,14.89,160.72,160.67,16.3251]
[1721227997182,21.1125,160.71,160.67,16.3251]
[1721227998775,6.2229,160.7,160.67,16.3251]
[1721227998978,14.89,160.7,160.64,21.1149]
[1721227999291,21.114,160.67,160.63,15.193]
[1721228000181,6.224,160.67,160.63,30.083]
[1721228000500,21.114,160.67,160.63,15.193]
[1721228000667,21.1143,160.66,160.63,15.193]
[1721228001403,14.89,160.64,160.6,1.08279675]
[1721228001580,21.1154,160.64,160.59,51.7655]
[1721228001800,14.89,160.63,160.59,30.6485]
[1721228002076,21.1155,160.63,160.59,15.0814]
[1721228002302,6.2259,160.62,160.59,15.0814]
[1721228002868,6.2259,160.62,160.56,21.7983]
[1721228003175,6.2264,160.61,160.56,15.5702]
[1721228003580,6.2258,160.62,160.56,15.5702]
[1721228003901,29.82,160.65,160.56,21.7983]
[1721228004088,6.2261,160.62,160.56,21.7983]
[1721228004292,6.2262,160.61,160.56,15.5702]
[1721228004589,20.0,160.64,160.55,15.7317]
[1721228004785,6.2265,160.61,160.55,15.7317]
[1721228005099,6.2265,160.61,160.55,21.9601]
[1721228005512,6.227,160.59,160.55,15.7317]
[1721228005678,6.2269,160.6,160.55,15.7317]
[1721228006378,6.2269,160.6,160.55,21.9602]
[1721228006704,20.0,160.64,160.55,21.9602]
[1721228006705,6.2263,160.61,160.55,21.9602]
[1721228006878,6.2267,160.6,160.55,15.7317]
[1721228007286,6.2267,160.6,160.55,21.9602]
[1721228007486,6.2263,160.61,160.55,21.9602]
[1721228009416,6.2259,160.62,160.56,7.47349347]
[1721228009575,6.2262,160.61,160.56,7.47349347]
[1721228009775,6.2267,160.6,160.55,15.7317]
[1721228010478,20.0,160.64,160.55,16.97720092]
[1721228010479,6.2263,160.61,160.55,16.97720092]
[1721228010684,20.0,160.64,160.55,16.97720092]
[1721228010894,6.2266,160.6,160.55,21.9601]
[1721228011102,6.2275,160.58,160.55,15.7317]
[1721228011314,6.2275,160.58,160.53,15.5731]
[1721228011486,29.82,160.62,160.51,16.5900982]
[1721228011688,6.2293,160.53,160.51,0.8269982]
[1721228012816,6.2297,160.52,160.51,0.8269982]
[1721228013391,26.2297,160.52,160.51,0.8269982]
[1721228013588,26.5697,160.52,160.51,0.8269982]
[1721228014077,6.2321,160.46,160.37,66.7003]
[1721228014281,29.82,160.5,160.4,6.2344]
[1721228014587,20.17,160.49,160.4,6.2344]
[1721228014783,20.17,160.49,160.4,6.2343]
[1721228015288,6.2327,160.45,160.37,44.2458]
[1721228015483,6.2328,160.44,160.37,44.2458]
[1721228015692,6.2333,160.43,160.38,1.24660346]
[1721228015907,6.2333,160.43,160.37,21.8235]
[1721228016090,6.2333,160.43,160.37,15.588]
[1721228016293,6.2333,160.43,160.37,21.8234]
[1721228016603,29.82,160.47,160.38,7.48168891]
[1721228016824,6.2329,160.44,160.37,15.588]
[1721228016987,6.2332,160.43,160.37,21.8235]
[1721228017400,6.2332,160.43,160.37,15.588]
[1721228017614,0.96093025,160.38,160.37,15.588]
[1721228017885,0.96093025,160.38,160.35,7.0632982]
[1721228018084,0.96093025,160.38,160.36,6.2359]
[1721228018318,0.96093025,160.38,160.37,6.2355]
[1721228018492,0.96093025,160.38,160.37,21.8244]
[1721228019023,0.96093025,160.38,160.37,66.8244]
[1721228019715,0.96093025,160.38,160.37,60.5889]
[1721228019893,0.96093025,160.38,160.37,45.0]
[1721228020297,0.96093025,160.38,160.36,45.0]
[1721228021411,0.96093025,160.38,160.36,1.24691235]
[1721228021594,0.96093025,160.37,160.36,1.24691235]
[1721228021801,0.96093025,160.37,160.35,0.8269982]
[1721228022107,0.96093025,160.37,160.35,45.8269982]
[1721228022419,0.96093025,160.37,160.35,0.8269982]
[1721228023208,0.96093025,160.36,160.35,0.8269982]
[1721228024289,7.19683025,160.36,160.35,0.8269982]
[1721228025534,0.96093025,160.36,160.35,0.8269982]
[1721228027426,0.96093025,160.36,160.35,7.0632982]
[1721228027628,0.96093025,160.36,160.35,52.0632982]
[1721228028925,0.96093025,160.36,160.35,0.8269982]
[1721228030495,0.96093025,160.36,160.35,7.0632982]
[1721228031000,0.96093025,160.36,160.35,52.0632982]
[1721228031427,0.96093025,160.36,160.35,52.2332982]
[1721228032041,0.96093025,160.36,160.35,7.0632982]
[1721228032200,0.96093025,160.36,160.35,79.73555422]
[1721228032399,0.96093025,160.36,160.35,69.73555422]
[1721228032602,0.96093025,160.36,160.35,69.56555422]
[1721228032915,0.96093025,160.36,160.35,97.0087982]
[1721228033097,0.96093025,160.36,160.35,68.4887982]
[1721228033301,0.96093025,160.36,160.35,68.3187982]
[1721228033508,6.2317,160.47,160.41,6.2336]
[1721228033711,15.6647,160.5,160.42,1.2465188]
[1721228034104,15.6647,160.5,160.41,45.0]
[1721228034304,6.2321,160.46,160.4,23.0659503]
[1721228034503,6.2324,160.45,160.41,45.0]
[1721228034916,6.2321,160.46,160.41,45.0]
[1721228035124,15.6647,160.5,160.41,45.0]
[1721228035337,6.2325,160.45,160.41,45.0]
[1721228035544,6.2323,160.46,160.4,21.8192]
[1721228035916,15.6647,160.5,160.4,21.8192]
[1721228036125,6.2313,160.48,160.42,21.817]
[1721228036316,6.2312,160.49,160.43,6.2331]
[1721228036511,20.0,160.48,160.44,45.0]
[1721228036744,20.0,160.48,160.42,15.5835]
[1721228036924,20.0,160.48,160.43,1.24643268]
[1721228036925,26.2313,160.48,160.43,1.24643268]
[1721228037242,20.0,160.48,160.43,52.47953268]
[1721228037426,6.2424,160.52,160.43,46.24643268]
[1721228037914,15.5742,160.53,160.43,46.24643268]
[1721228038114,6.2306,160.5,160.44,6.2326]
[1721228038311,6.2309,160.49,160.43,52.48143268]
[1721228038539,6.2304,160.51,160.44,15.5815]
[1721228038740,6.2304,160.51,160.44,16.82770235]
[1721228039150,6.2286,160.55,160.49,6.2308]
[1721228039443,6.2282,160.56,160.5,7.47630433]
[1721228039652,45.3877,160.59,160.47,1.24583531]
[1721228039813,45.3877,160.59,160.47,7.47743531]
[1721228039814,6.2294,160.53,160.47,7.47743531]
[1721228040015,6.2299,160.52,160.46,15.5799]
[1721228040316,15.5702,160.57,160.47,6.2316]
[1721228040317,29.82,160.56,160.47,6.2316]
[1721228040514,15.5721,160.55,160.45,60.5802]
[1721228040745,6.2298,160.52,160.46,6.2319]
[1721228040946,26.2293,160.54,160.47,45.0]
[1721228041251,6.2293,160.54,160.48,7.47708898]
[1721228041419,6.2298,160.52,160.48,1.24599082]
[1721228041621,6.2298,160.52,160.47,51.2316]
[1721228041826,6.229,160.54,160.48,6.2312]
[1721228042144,15.5687,160.58,160.49,6.2305]
[1721228042343,20.0,160.57,160.49,6.2305]
[1721228042557,15.5711,160.56,160.47,45.0]
[1721228042727,20.0,160.57,160.46,45.0]
[1721228042928,6.2275,160.58,160.52,6.2294]
[1721228043248,6.2279,160.57,160.51,21.805]
[1721228043433,6.2277,160.58,160.52,6.2296]
[1721228043640,6.227,160.59,160.53,6.2291]
[1721228043831,21.7957,160.61,160.48,29.82]
[1721228044146,21.7957,160.61,160.52,6.2294]
[1721228044355,21.7957,160.61,160.49,51.2306]
[1721228044650,6.2284,160.56,160.5,6.2303]
[1721228044960,51.6157,160.61,160.5,1.24578445]
[1721228044961,6.2295,160.53,160.5,1.24578445]
[1721228045119,29.82,160.58,160.47,15.1123]
[1721228045322,6.2302,160.51,160.47,15.1123]
[1721228045630,6.2294,160.53,160.47,15.1123]
[1721228045846,6.2283,160.56,160.5,6.2304]
[1721228046049,26.2278,160.57,160.51,6.2301]
[1721228046243,30.59,160.63,160.52,1.24567146]
[1721228046438,30.59,160.63,160.53,6.2292]
[1721228046439,6.227,160.59,160.53,6.2292]
[1721228046630,6.2266,160.6,160.54,7.47450135]
[1721228046833,6.3709,160.65,160.55,1.24548096]
[1721228047129,6.2273,160.59,160.54,15.5717]
[1721228047322,6.2274,160.58,160.53,6.229]
[1721228047525,15.5632,160.64,160.53,6.229]
[1721228047526,6.2271,160.59,160.53,6.229]
[1721228047726,6.2271,160.59,160.54,6.2289]
[1721228048454,6.2271,160.59,160.53,6.2292]
[1721228048667,29.82,160.64,160.54,16.9875129]
[1721228048954,6.3709,160.65,160.55,51.2285]
[1721228048955,21.9333,160.65,160.55,51.2285]
[1721228049128,21.9333,160.65,160.55,1.24550887]
[1721228049328,21.9333,160.65,160.54,21.8009]
[1721228049329,6.2263,160.61,160.54,15.572]
[1721228049550,6.2268,160.6,160.55,52.47380857]
[1721228049855,15.5641,160.63,160.51,51.6035]
[1721228050054,6.2279,160.57,160.52,45.0]
[1721228050264,0.17,160.62,160.53,1.24558626]
[1721228050570,20.34,160.62,160.53,6.2292]
[1721228050772,6.227,160.59,160.54,7.47448639]
[1721228050951,20.17,160.62,160.54,6.2289]
[1721228051147,20.0,160.62,160.54,6.2289]
[1721228051360,6.2261,160.62,160.56,6.2278]
[1721228051544,6.2262,160.61,160.56,6.2278]
[1721228051744,6.2262,160.61,160.55,31.1846]
[1721228051745,6.2262,160.61,160.55,32.43001855]
[1721228051959,6.3709,160.65,160.57,6.2276]
[1721228052158,6.2259,160.62,160.57,6.2276]
[1721228052578,6.2259,160.62,160.56,6.2281]
[1721228052753,6.2261,160.62,160.55,31.1846]
[1721228053069,6.2254,160.64,160.57,15.569]
[1721228053281,46.0633,160.67,160.56,45.0]
[1721228053447,6.2269,160.6,160.55,16.85878587]
[1721228053641,6.2266,160.6,160.56,45.0]
[1721228053845,6.2267,160.6,160.56,1.24534879]
[1721228054045,6.2274,160.58,160.55,15.6136]
[1721228054247,6.2278,160.57,160.52,1.24549727]
[1721228054468,15.5654,160.62,160.51,37.3574]
[1721228054663,15.5654,160.62,160.52,1.24550892]
[1721228054965,6.2271,160.59,160.54,6.2288]
[1721228055360,6.2267,160.6,160.54,6.2288]
[1721228055569,29.82,160.64,160.55,6.2285]
[1721228055868,20.0,160.63,160.55,6.2285]
[1721228056064,6.227,160.59,160.53,15.573]
[1721228056369,35.5642,160.63,160.54,51.2289]
[1721228056566,6.227,160.6,160.54,51.2289]
[1721228056870,6.2276,160.58,160.53,16.81843871]
[1721228057173,15.5661,160.61,160.51,28.0128]
[1721228057361,6.2283,160.56,160.51,21.7827]
[1721228057561,6.2286,160.55,160.51,21.7827]
[1721228057762,15.5679,160.59,160.51,21.7827]
[1721228057951,6.2278,160.57,160.51,21.7827]
[1721228058274,0.17,160.6,160.52,7.475423]
[1721228058480,6.2276,160.58,160.52,7.475423]
[1721228058678,0.34,160.6,160.52,6.2297]
[1721228058857,15.5651,160.62,160.53,15.5732]
[1721228059165,6.2278,160.57,160.52,6.2296]
[1721228059372,20.17,160.61,160.51,21.7827]
[1721228059373,15.5672,160.6,160.51,21.7827]
[1721228059576,0.17,160.59,160.51,15.574]
[1721228059756,0.34,160.59,160.5,15.5759]
[1721228060077,6.2296,160.53,160.47,37.8725]
[1721228060251,6.2296,160.53,160.47,44.1039]
[1721228060451,45.389,160.58,160.47,44.1039]
[1721228060452,15.5713,160.56,160.47,16.1847]
[1721228060751,6.2304,160.51,160.47,16.1847]
[1721228060971,6.2304,160.51,160.44,15.5818]
[1721228061247,6.2304,160.51,160.45,6.2324]
[1721228061556,6.2305,160.5,160.45,6.2324]
[1721228061767,6.2305,160.5,160.44,21.8145]
[1721228061961,6.2305,160.5,160.45,45.0]
[1721228062773,6.2305,160.5,160.45,51.2324]
[1721228062976,6.2309,160.49,160.44,21.8146]
[1721228063178,66.8345,160.52,160.41,21.8185]
[1721228063353,6.2317,160.47,160.41,21.8185]
[1721228063774,6.2317,160.47,160.41,21.8188]
[1721228064082,20.0,160.51,160.41,21.8188]
[1721228064257,6.2317,160.47,160.42,6.2335]
[1721228064779,6.2317,160.47,160.41,15.5849]
[1721228064780,6.2317,160.47,160.41,21.8188]
[1721228065567,15.7468,160.5,160.4,6.2343]
[1721228065769,15.7468,160.5,160.39,15.1893]
[1721228065770,6.2325,160.45,160.39,21.4238]
[1721228066465,6.2317,160.47,160.4,15.5854]
[1721228066660,6.2317,160.47,160.41,6.2338]
[1721228066885,20.0,160.49,160.4,15.5854]
[1721228067060,0.17,160.48,160.39,21.424]
[1721228067263,6.2321,160.46,160.4,7.48093853]
[1721228067459,6.2321,160.46,160.4,6.2343]
[1721228067659,6.2325,160.45,160.39,37.0103]
[1721228068596,6.2325,160.45,160.4,6.2343]
[1721228068959,6.2321,160.46,160.4,6.2343]
[1721228069375,6.2325,160.45,160.4,6.2343]
[1721228069581,6.2332,160.44,160.39,37.0104]
[1721228070297,49.82,160.49,160.37,6.2352]
[1721228070298,6.2332,160.43,160.37,6.2352]
[1721228071006,45.4008,160.46,160.36,15.5894]
[1721228071169,6.2343,160.41,160.36,15.5894]
[1721228071377,6.2351,160.39,160.35,0.8269982]
[1721228071896,29.82,160.43,160.35,0.8269982]
[1721228071897,6.2352,160.38,160.35,0.8269982]
[1721228072401,6.2348,160.39,160.35,0.8269982]
[1721228072588,15.7548,160.42,160.35,0.8269982]
[1721228072589,6.2352,160.38,160.35,0.8269982]
[1721228072783,6.2356,160.37,160.35,0.8269982]
[1721228073096,6.2351,160.39,160.35,0.8269982]
[1721228073297,20.0,160.38,160.35,0.8269982]
[1721228073507,6.2359,160.36,160.35,0.8269982]
[1721228074073,20.0,160.38,160.35,0.8269982]
[1721228074268,6.2359,160.36,160.35,0.8269982]
[1721228074702,6.2356,160.37,160.35,0.8269982]
[1721228074997,6.2352,160.38,160.35,0.8269982]
[1721228075204,6.2347,160.4,160.35,0.8269982]
[1721228075377,15.5836,160.43,160.35,0.8269982]
[1721228075378,6.2348,160.39,160.35,0.8269982]
[1721228075571,45.4036,160.43,160.35,0.8269982]
[1721228075774,29.82,160.43,160.36,1.24713697]
[1721228075999,6.2352,160.38,160.35,0.8269982]
[1721228076184,6.235,160.39,160.35,2.07394942]
[1721228076385,6.2353,160.38,160.35,2.07402645]
[1721228076583,6.2351,160.38,160.35,0.8269982]
[1721228076801,6.2356,160.37,160.35,0.8269982]
[1721228077005,6.2352,160.38,160.35,0.8269982]
[1721228077196,6.2359,160.36,160.35,0.8269982]
[1721228080982,26.2359,160.36,160.35,0.8269982]
[1721228081712,6.2349,160.39,160.35,0.8269982]
[1721228081879,20.0,160.38,160.35,0.8269982]
[1721228082080,6.2353,160.38,160.35,0.8269982]
[1721228082485,6.2356,160.37,160.35,0.8269982]
[1721228082882,20.0,160.42,160.35,0.8269982]
[1721228082883,6.2352,160.38,160.35,0.8269982]
[1721228083096,6.2356,160.37,160.35,0.8269982]
[1721228083736,6.2359,160.36,160.35,0.8269982]
[1721228084420,26.2359,160.36,160.35,0.8269982]
[1721228091117,22.4143,160.48,160.35,16.1936982]
[1721228091287,6.2344,160.4,160.35,17.44074907]
[1721228091604,6.2341,160.41,160.36,45.0]
[1721228091810,6.2347,160.4,160.35,31.7838982]
[1721228091996,6.2347,160.4,160.36,1.24702343]
[1721228092504,6.2348,160.39,160.36,1.24702343]
[1721228092810,15.5848,160.42,160.35,16.1936982]
[1721228093113,6.235,160.39,160.35,16.1936982]
[1721228093615,6.2353,160.38,160.35,16.1936982]
[1721228094216,15.5848,160.42,160.36,1.24710977]
[1721228094217,6.2348,160.39,160.36,1.24710977]
[1721228094609,6.2348,160.39,160.35,16.1936982]
[1721228094610,15.5864,160.4,160.35,0.8269982]
[1721228094820,6.2359,160.36,160.35,0.8269982]
[1721228099518,26.2359,160.36,160.35,0.8269982]
[1721228102894,37.2872,160.41,160.35,0.8269982]
[1721228103210,15.5824,160.44,160.35,0.8269982]
[1721228103415,6.2348,160.39,160.35,0.8269982]
[1721228103749,15.5824,160.44,160.35,0.8269982]
[1721228103750,6.2342,160.41,160.36,1.24702473]
[1721228104228,15.5824,160.44,160.35,0.8269982]
[1721228104229,6.2344,160.4,160.35,7.0601982]
[1721228104396,15.5824,160.44,160.35,13.2963982]
[1721228104397,6.234,160.41,160.35,13.2963982]
[1721228104595,6.2344,160.4,160.35,7.0601982]
[1721228104896,15.5824,160.44,160.35,13.2963982]
[1721228104897,6.234,160.41,160.35,13.2963982]
[1721228105094,6.2337,160.42,160.36,7.48278417]
[1721228105399,6.2337,160.42,160.37,16.1027]
[1721228105597,6.2329,160.44,160.38,7.48185074]
[1721228105792,45.3992,160.48,160.39,6.2347]
[1721228105793,6.2325,160.45,160.39,6.2347]
[1721228106428,37.10327481,160.51,160.4,1.24665052]
[1721228106429,52.67887481,160.51,160.4,1.24665052]
[1721228106607,6.2317,160.47,160.42,6.602]
[1721228106796,52.67887481,160.51,160.42,12.8355]
[1721228106797,6.2313,160.48,160.42,12.8355]
[1721228107122,6.2309,160.49,160.43,1.24635563]
[1721228107317,6.2305,160.5,160.43,52.47935563]
[1721228107493,6.231,160.49,160.44,16.5284]
[1721228107689,304.2925,160.54,160.45,1.24627947]
[1721228107889,304.2925,160.54,160.4,16.5284]
[1721228107890,45.3956,160.51,160.4,16.5284]
[1721228108122,6.2317,160.47,160.41,51.2339]
[1721228108304,45.3956,160.51,160.4,32.1144]
[1721228108626,0.17,160.5,160.4,16.5284]
[1721228108914,15.578,160.49,160.4,16.5284]
[1721228109130,15.5801,160.47,160.36,16.5284]
[1721228109297,6.2344,160.4,160.36,16.5284]
[1721228109495,45.4018,160.45,160.36,16.5284]
[1721228109703,6.2348,160.39,160.36,17.77538667]
[1721228109907,6.2344,160.4,160.36,16.5284]
[1721228110123,6.2335,160.43,160.37,6.2354]
[1721228110306,6.2332,160.43,160.37,6.2355]
[1721228110507,35.5808,160.46,160.36,16.5284]
[1721228110737,30.16,160.45,160.36,17.77539356]
[1721228110907,20.0,160.44,160.36,17.77539356]
[1721228111104,20.0,160.44,160.36,24.01129356]
[1721228111314,6.2332,160.43,160.36,17.77539356]
[1721228111515,26.2331,160.44,160.38,6.2351]
[1721228111833,20.0,160.44,160.39,1.24674717]
[1721228112031,15.5801,160.47,160.37,15.5883]
[1721228112032,20.0,160.46,160.4,1.24676314]
[1721228112241,20.0,160.46,160.37,21.8236]
[1721228112242,6.2332,160.43,160.38,1.24674488]
[1721228112535,20.0,160.46,160.39,6.2344]
[1721228112722,20.0,160.47,160.4,1.24656945]
[1721228113236,6.4882,160.63,160.51,6.23]
[1721228113408,6.4882,160.63,160.47,10.0]
[1721228113409,6.2282,160.56,160.52,1.24571903]
[1721228113757,6.2277,160.58,160.52,1.24571903]
[1721228113934,6.228,160.57,160.52,1.24571903]
[1721228114134,15.567,160.6,160.52,1.24571903]
[1721228114135,6.2282,160.56,160.52,1.24571903]
[1721228114326,36.3082,160.63,160.53,6.2292]
[1721228114327,51.8723,160.63,160.53,6.2292]
[1721228114510,6.2278,160.57,160.54,1.24563089]
[1721228115022,6.2278,160.57,160.51,1.24564108]
[1721228115226,6.2278,160.57,160.52,1.24564171]
[1721228115615,6.2283,160.56,160.52,1.24564171]
[1721228116139,15.5662,160.61,160.52,1.24564171]
[1721228116140,6.2286,160.55,160.52,1.24564171]
[1721228116523,6.2293,160.53,160.47,6.2314]
[1721228116728,6.2293,160.53,160.48,45.0]
[1721228117034,6.2293,160.53,160.48,51.2312]
[1721228117230,6.2289,160.54,160.49,1.24589736]
[1721228117414,6.2294,160.53,160.49,1.24589736]
[1721228117618,6.2294,160.53,160.48,51.2312]
[1721228117619,6.2294,160.53,160.48,45.0]
[1721228117831,15.571,160.56,160.46,21.8023]
[1721228118040,65.17,160.55,160.41,21.7149]
[1721228118212,15.5735,160.53,160.43,6.2331]
[1721228118417,6.231,160.49,160.43,6.2331]
[1721228118932,6.2305,160.5,160.45,6.2324]
[1721228119237,20.0,160.52,160.42,15.5833]
[1721228119437,6.2318,160.47,160.43,46.24635364]
[1721228119632,6.2314,160.48,160.43,52.47945364]
[1721228119827,6.2314,160.48,160.43,7.47945364]
[1721228120139,6.2314,160.48,160.42,15.5833]
[1721228120140,6.2317,160.47,160.42,15.5833]
[1721228120343,6.2326,160.45,160.41,21.7149]
[1721228120529,6.2328,160.44,160.41,22.96138199]
[1721228120925,15.7461,160.51,160.41,22.96138199]
[1721228120926,15.5778,160.49,160.41,21.7149]
[1721228121122,15.5778,160.49,160.36,28.69]
[1721228121123,20.17,160.48,160.37,12.5266]
[1721228121325,6.2336,160.43,160.37,12.5266]
[1721228121742,20.17,160.48,160.37,6.2911]
[1721228121743,15.5809,160.46,160.37,6.2911]
[1721228121933,20.0,160.45,160.37,6.2911]
[1721228122135,6.2325,160.45,160.39,6.2347]
[1721228122348,6.232,160.46,160.4,1.24662855]
[1721228122529,26.2316,160.48,160.41,6.2336]
[1721228122860,26.2313,160.48,160.42,7.47968867]
[1721228123142,26.2313,160.48,160.43,1.24638772]
[1721228123518,6.2319,160.47,160.41,21.8183]